Cogmind - Beta 15 @@@ ROGUE MODE // 2025.07.19 @ 00:19:25 Player: shapeshifter Result: Destroyed by H-66 Slayer with Gauss Rifle Performance ------------- Evolutions (4) 2000 Regions Visited (6) 1200 Robots Destroyed (76) 380 Value Destroyed (1814) 1814 Prototype IDs (9) 180 Alien Tech Used (0) 0 Bonus (200) 200 TOTAL SCORE: 5774 Bonus ------- Entered Garrisons 200 Cogmind --------- Core Integrity 0/850 Matter 300/300 Energy 42/100 System Corruption 0% Temperature Cool (0) Movement Flying (35) Location -6/Garrison Parts ------- > --- POWER (2) -------- (None) > --- PROPULSION (6) --- Improved VTOL Module > --- UTILITY (5) ------ System Shield > --- WEAPON (2) ------- (None) > --- INVENTORY (5) ---- Cooled Deuterium Engine Armor Integrity Analyzer Microactuators Recalibrator Heavy Mace Peak State ------------ > --- POWER ------------ Cooled Deuterium Engine Micro Nuclear Core > --- PROPULSION ------- Improved Flight Unit Improved Flight Unit Improved Flight Unit Cesium-ion Thruster Improved VTOL Module Improved VTOL Module > --- UTILITY ---------- Medium Storage Unit Advanced Weight Redist. System Transmission Jammer Improved Propulsion Shielding System Shield > --- WEAPON ----------- Greatsword > --- INVENTORY -------- Improved Deuterium Engine Improved Surge Thruster Compact Battery Armor Integrity Analyzer Hardlight Generator Force Field Recalibrator Heavy Flak Cannon Remote Datajack Heavy Mace [Rating: 55] Favorites ----------- Power Ion Engine Engine Ion Engine Power Core Micro Nuclear Core Propulsion Improved Flight Unit Treads Light Treads Flight Unit Improved Flight Unit Utility Seismic Detector Device Seismic Detector Storage Medium Storage Unit Hackware System Shield Protection Improved Propulsion Shielding Weapon Assault Rifle Energy Gun EM Pulse Gun Energy Cannon EM Pulse Cannon Ballistic Gun Assault Rifle Ballistic Cannon Improved Light Cannon Launcher Grenade Launcher Impact Weapon Heavy Mace Slashing Weapon Greatsword Build | -11 -10 -9 -8 -7 -6 -6 ------- Run | Yrd Mat Mat Mat Fac Fac Gar Slots Evolved 8 | . . 2 2 2 2 . Power 1 | . . . . . 1 . Propulsion 4 | . . 2 2 . . . Utility 3 | . . . . 2 1 . Weapon . | . . . . . . . Parts Attached 67 | 7 2 14 21 9 12 2 Power 11 | 1 . 2 4 3 1 . Engine 7 | 1 . 2 1 2 1 . Core 4 | . . . 3 1 . . Reactor . | . . . . . . . Propulsion 18 | 2 . 6 6 1 1 2 Treads 2 | 2 . . . . . . Leg . | . . . . . . . Wheel . | . . . . . . . Hover . | . . . . . . . Flight 16 | . . 6 6 1 1 2 Utility 18 | 2 1 3 5 3 4 . Device 7 | 1 . 1 . 1 4 . Storage 8 | 1 1 2 3 1 . . Processor . | . . . . . . . Hackware 1 | . . . . 1 . . Protection 2 | . . . 2 . . . Artifact . | . . . . . . . Weapon 20 | 2 1 3 6 2 6 . Energy Gun 3 | 1 . . . . 2 . Energy Cannon 1 | . . . 1 . . . Ballistic Gun 3 | 1 . 2 . . . . Ballistic Cannon 1 | . . 1 . . . . Launcher 2 | . 1 . 1 . . . Special Weapon . | . . . . . . . Impact Weapon 6 | . . . 4 . 2 . Slashing Weapon 4 | . . . . 2 2 . Piercing Weapon . | . . . . . . . Special Melee Weapon . | . . . . . . . Unidentified Prototypes 7 | . . 1 2 . 4 . Parts Lost 29 | . . 6 4 1 4 14 Power 5 | . . 1 2 . . 2 Propulsion 11 | . . 2 2 . 1 6 Utility 5 | . . . . . 1 4 Weapon 8 | . . 3 . 1 2 2 Highest Loss Streak 14 | . . 4 2 1 2 14 To Critical Strikes . | . . . . . . . Average Backups 7 | 2 9 7 5 8 8 8 Power . | 1 1 . . 1 1 1 Propulsion . | . 2 . . . 1 . Utility 4 | . 3 3 4 4 4 4 Weapon 1 | . 1 2 . . 1 1 Tool/Special . | . . . . . . . Unused Backups 17 | . 1 2 4 4 3 3 Power . | . . . . . . . Propulsion . | . . . . . . . Utility 9 | . . . 2 3 2 2 Weapon 7 | . 1 2 2 1 1 . Tool/Special 1 | . . . . . . 1 Average Slot Usage (%) 89 | . 100 83 76 92 93 72 Engine 6 | . 14 9 . 1 6 4 Core 2 | . . . 4 5 5 3 Treads 8 | . 28 . . . . . Flight 27 | . . 33 40 46 40 27 Device 11 | . 14 11 7 7 14 16 Storage 9 | . 14 11 2 12 6 5 Hackware 1 | . . . . 1 6 6 Protection 3 | . . . 5 7 3 . Energy Gun 1 | . 3 . . . . . Ballistic Gun 5 | . 14 11 . . . . Launcher 3 | . 10 3 . . . . Impact Weapon 3 | . . . 12 . 3 5 Slashing Weapon 1 | . . . . 6 4 1 Peak Build Rating 55 | 7 8 14 35 46 55 49 Average Rating 24 | 3 7 9 22 43 52 40 On Entrance 21 | . 7 8 8 34 46 47 Naked Turns . | . . . . . . . Heaviest Build 43 | 15 31 17 24 28 43 34 Greatest Support 40 | 40 40 16 30 30 39 34 Greatest Overweight (x) 4 | . . 4 1 . 1 1 Average Overweight (x) . | . . . . . . . Largest Inventory Capacity 15 | 8 15 15 10 10 10 10 Average Capacity 9 | 7 11 8 5 10 10 9 Most Carried 12 | 5 12 11 10 10 10 10 Average Carried 7 | 3 9 7 5 9 9 8 Final Capacity 15 | 8 15 8 10 10 10 5 Final Carried 12 | 3 12 4 10 10 10 5 Class Distribution -------------------- 53% | Sprinter 44% | Mutant Dominant Class ---------------- Mutant | -10/Materials Sprinter | -9/Materials Sprinter | -8/Materials Sprinter | -7/Factory Sprinter | -6/Factory Gladiator | -6/Garrison Resources | -11 -10 -9 -8 -7 -6 -6 ----------- Run | Yrd Mat Mat Mat Fac Fac Gar Matter Collected 1472 | 231 252 164 447 125 230 23 Remotely . | . . . . . . . Salvage Created 2668 | 132 454 218 1021 264 393 186 Parts 111 | 11 30 24 23 15 6 2 Haulers Intercepted 7 | . 1 1 3 1 1 . Recyclers Shooed 4 | 1 3 . . . . . Parts Field Recycled . | . . . . . . . Retrieved Matter . | . . . . . . . Parts Self-Destructed . | . . . . . . . Prevented . | . . . . . . . Kills | -11 -10 -9 -8 -7 -6 -6 ------- Run | Yrd Mat Mat Mat Fac Fac Gar Combat Hostiles Destroyed 39 | . 14 5 12 2 3 3 Melee 9 | . . . 5 2 . 2 Guns 9 | . 5 4 . . . . AOE 10 | . 9 1 . . . . Classes Destroyed 11 | 2 6 1 2 . . . Worker 2 | . . . 2 . . . Builder 2 | . 2 . . . . . Tunneler 4 | 2 . . 1 1 . . Hauler 7 | . 1 1 3 1 1 . Recycler 7 | 1 2 . 4 . . . Operator 6 | . 2 . . 1 3 . Watcher 9 | . 1 3 2 1 2 . Swarmer 12 | . 6 3 . . . 3 Grunt 19 | . 8 1 9 . 1 . Duelist 1 | . . . 1 . . . Sentry 7 | . . 1 2 2 2 . Best Kill Streak 8 | 2 8 4 8 2 3 3 Combat Bots Only 6 | . 5 3 6 1 1 3 Max Kills in Single Turn 3 | 1 3 1 3 1 1 1 Gunslinging . | . . . . . . . Exploded 2 | . 2 1 . . . . Melee 1 | . . . 1 1 . 1 Uniques/NPCs Destroyed . | . . . . . . . Combat | -11 -10 -9 -8 -7 -6 -6 -------- Run | Yrd Mat Mat Mat Fac Fac Gar Hostile Shots Fired 573 | . 36 74 75 111 128 149 Missed 233 | . 13 21 31 58 69 41 Hits 340 | . 23 53 44 53 59 108 Projectile 340 | . 23 53 44 53 59 108 Critical Strikes 9 | . . 2 4 . 2 1 Damage Taken 4290 | . 244 794 801 415 529 1507 Core 1525 | . 28 164 387 93 127 726 Absorbed by Shields 121 | . . . . . 89 32 Redirected to Shielding 85 | . . . 5 49 31 . Regen/Repaired (Parts) 114 | . . 94 . . 20 . Core Remaining (%) 72 | 100 88 59 29 86 . . Volleys Fired 85 | 17 38 29 1 . . . Largest 2 | 1 2 2 1 . . . Hottest 63 | 40 50 50 63 . . . Shots Fired 116 | 17 52 46 1 . . . Gun 88 | 17 38 33 . . . . Cannon 8 | . . 7 1 . . . Launcher 20 | . 14 6 . . . . Special . | . . . . . . . Kinetic 92 | 14 38 40 . . . . Thermal . | . . . . . . . Explosive 20 | . 14 6 . . . . Electromagnetic 4 | 3 . . 1 . . . Robot Hit Streak 7 | 4 7 7 2 . . . Robot Miss Streak 4 | 1 4 2 . . . . Penetration Max . | . . . . . . . Secondary Targets 1 | . . 1 . . . . Max Gunslinging Chain 1 | . . 1 . . . . Shots Hit Robots 150 | 12 26 30 47 16 14 5 Core Hits 74 | 3 38 16 10 4 2 1 Critical Kills 2 | . . . 2 . . . Critical Parts Destroyed 19 | . . . 10 . 6 3 Critical Strikes 23 | . . . 12 2 6 3 Smash 21 | . . . 12 . 6 3 Sever 2 | . . . . 2 . . Melee Attacks 105 | . . . 61 20 16 8 Impact 76 | . . . 61 . 11 4 Slashing 29 | . . . . 20 5 4 Piercing . | . . . . . . . Sneak Attacks 15 | . . . 10 3 2 . Combat Hostiles . | . . . . . . . Follow-up Attacks 4 | . . . 3 . 1 . Damage Inflicted 6709 | 144 1227 717 2414 1129 797 281 Guns 752 | 144 277 331 . . . . Cannons 107 | . . 79 28 . . . Explosions 1459 | . 947 307 205 . . . Melee 4388 | . . . 2181 1129 797 281 Ramming 3 | . 3 . . . . . Kinetic 803 | 116 277 410 . . . . Thermal 142 | . . 142 . . . . Explosive 1317 | . 947 165 205 . . . Electromagnetic 56 | 28 . . 28 . . . Impact 2837 | . . . 2181 . 438 218 Slashing 1551 | . . . . 1129 359 63 Piercing . | . . . . . . . Highest Corruption 2 | . 2 2 . . . . Average Corruption 2 | . 2 2 . . . . Corruption Purged . | . . . . . . . Corruption Blocked . | . . . . . . . Effects 6 | . 2 4 . . . . Matter Fused 1 | . 1 . . . . . Heat Flow Errors 2 | . 1 1 . . . . Energy Discharges 2 | . . 2 . . . . Parts Rejected 1 | . . 1 . . . . Overload Shots . | . . . . . . . Overflow Damage 1766 | . 34 79 812 190 429 222 Projectiles . | . . . . . . . Explosions 140 | . 34 79 27 . . . Melee 1626 | . . . 785 190 429 222 Knockbacks 11 | . . . 10 . 1 . Impact 10 | . . . 9 . 1 . Kinetic . | . . . . . . . Secondary 1 | . . . 1 . . . Self-Inflicted Damage 215 | . 21 96 98 . . . Shots 3 | . 1 1 1 . . . Rammed 1 | . 1 . . . . . Targets Rammed 1 | . 1 . . . . . Kicked . | . . . . . . . Crushed . | . . . . . . . Highest Temperature 368 | . 226 231 240 99 368 19 Average Temperature 84 | . 68 54 51 29 125 13 Received Heat Transfer 1035 | . 93 186 324 138 231 63 Effects 14 | . . 1 . . 13 . Shutdowns 1 | . . . . . 1 . Energy Bleed 2 | . . 1 . . 1 . Interference 9 | . . . . . 9 . Damage (minor) 2 | . . . . . 2 . Siege Activations . | . . . . . . . Martial Activations . | . . . . . . . Shielding Activations . | . . . . . . . Robots Disrupted . | . . . . . . . Combat Hostiles . | . . . . . . . Robots Corrupted 20 | . . . 12 . 6 2 Combat Hostiles 11 | . . . 7 . 3 1 Parts Fried 28 | . . . 13 . 12 3 Impact Corruptions 41 | . . . 25 . 11 5 Robots Melted . | . . . . . . . Combat Hostiles . | . . . . . . . Parts Melted . | . . . . . . . Heat Transferred 100 | . . 100 . . . . Parts Sabotaged . | . . . . . . . Parts Stolen . | . . . . . . . Parts Stripped . | . . . . . . . Power Chain Reactions . | . . . . . . . Alert | -11 -10 -9 -8 -7 -6 -6 ------- Run | Yrd Mat Mat Mat Fac Fac Gar Maximum Alert Level 1 | . . 1 1 . 1 1 Low Security (%) 84 | 100 100 97 51 100 83 37 Level 1 15 | . . 2 48 . 16 62 Level 2 . | . . . . . . . Level 3 . | . . . . . . . Level 4 . | . . . . . . . Level 5 . | . . . . . . . High Security . | . . . . . . . Max Security . | . . . . . . . Peak Influence 342 | 10 188 200 342 158 247 302 Initial 172 | . . 48 44 137 . 172 Average 114 | . 92 107 188 92 83 228 Influence Increases 2277 | 15 445 299 640 176 532 170 Destroy 0b10 Robot/C 780 | . 280 100 240 40 60 60 Destroy 0b10 Robot/NC 190 | 15 40 20 60 20 30 5 Destroy Leader 192 | . 54 28 60 24 26 . Successful Hack 77 | . 5 24 5 17 26 . Disable Machine 60 | . . 45 15 . . . Destroy Structure 138 | . 66 67 5 . . . Partial Spotted 135 | . . 15 30 15 75 . Lose Combat Pursuer 705 | . . . 225 60 315 105 Influence Decreases 2075 | 15 331 306 445 478 285 215 Entered New Map 369 | . . 66 63 165 . 75 Time Decay 1241 | 15 331 180 342 180 193 . Lost Part 290 | . . 60 40 10 40 140 Purge Threat 175 | . . . . 123 52 . Squads Dispatched 14 | . 2 . 3 2 7 . Investigation 5 | . 1 . . . 4 . Extermination 2 | . . . . 1 1 . Reinforcement 5 | . 1 . 1 1 2 . Assault . | . . . . . . . Garrison 2 | . . . 2 . . . Intercept . | . . . . . . . Searches Triggered . | . . . . . . . Construction Impeded . | . . . . . . . Haulers Reinforced . | . . . . . . . Active Scanning Responses . | . . . . . . . Cargo Convoy Interrupts . | . . . . . . . Stealth | -11 -10 -9 -8 -7 -6 -6 --------- Run | Yrd Mat Mat Mat Fac Fac Gar Distress Signals 3 | . . . 2 . 1 . Communications Jammed 2 | . . . . . 2 . Distress Signals 2 | . . . . . 2 . Times Spotted 118 | . 20 9 33 9 33 14 Peak Tracking Total 9 | . 4 4 7 5 7 9 Tactical Retreats 23 | . . . 9 2 11 1 Traps | -11 -10 -9 -8 -7 -6 -6 ------- Run | Yrd Mat Mat Mat Fac Fac Gar Traps Triggered 3 | . 1 1 . 1 . . Indirectly . | . . . . . . . Trap Hack Attempts . | . . . . . . . Triggered . | . . . . . . . Disarmed 6 | . 6 . . . . . Reprogrammed . | . . . . . . . Reused . | . . . . . . . Traps Extracted . | . . . . . . . Installed . | . . . . . . . Triggered . | . . . . . . . Machines | -11 -10 -9 -8 -7 -6 -6 ---------- Run | Yrd Mat Mat Mat Fac Fac Gar Machines Disabled 4 | . . 3 1 . . . Max in Single Turn 2 | . . 2 1 . . . Machines Repaired . | . . . . . . . Machines Dismantled . | . . . . . . . Machines Sabotaged . | . . . . . . . Overloaded Fab Kills . | . . . . . . . Hacking | -11 -10 -9 -8 -7 -6 -6 --------- Run | Yrd Mat Mat Mat Fac Fac Gar Machines Accessed 32 | . 7 3 4 5 12 1 Terminals 25 | . 6 2 3 3 10 1 Fabricators . | . . . . . . . Repair Stations 4 | . . 1 . 2 1 . Recycling Units 2 | . 1 . 1 . . . Scanalyzers . | . . . . . . . Garrison Access 1 | . . . . . 1 . Total Hacks 97 | . 23 8 12 12 40 2 Successful 49 | . 11 4 4 5 25 . Failed 48 | . 12 4 8 7 15 2 Catastrophic 9 | . 1 1 3 1 3 . Database Lockouts . | . . . . . . . Manual . | . . . . . . . Terminals 83 | . 20 5 10 10 36 2 Fabricators . | . . . . . . . Repair Stations 8 | . . 3 . 2 3 . Recycling Units 5 | . 3 . 2 . . . Scanalyzers . | . . . . . . . Garrison Access 1 | . . . . . 1 . Terminal Hacks 38 | . 8 2 2 4 22 . Record 9 | . . . . . 9 . Part Schematic 1 | . . . . 1 . . Robot Analysis 1 | . . . . . 1 . Prototype ID Bank 1 | . 1 . . . . . Open DSF 2 | . . . . 1 1 . Branch Access Points 1 | . 1 . . . . . Emergency Access Points 2 | . 1 . . . 1 . Terminal Index 1 | . . 1 . . . . Alert Level 4 | . . . . 1 3 . Unreport Threat 2 | . . . . 1 1 . Locate Traps 3 | . 1 . 1 . 1 . Disarm Traps 1 | . 1 . . . . . Dispatch Records 1 | . . . . . 1 . Surveillance Status 1 | . . 1 . . . . Patrol Status 1 | . . . . . 1 . Transport Status 1 | . . . 1 . . . Hauler Manifests 2 | . 2 . . . . . Zone Layout 4 | . 1 . . . 3 . Fabricator Hacks . | . . . . . . . Repair Station Hacks 5 | . . 2 . 1 2 . Scan Component 3 | . . 1 . 1 1 . Repair 2 | . . 1 . . 1 . Recycling Unit Hacks 5 | . 3 . 2 . . . Process 1 | . 1 . . . . . Report Inventory 2 | . 1 . 1 . . . Retrieve Matter 1 | . 1 . . . . . Retrieve Components 1 | . . . 1 . . . Scanalyzer . | . . . . . . . Garrison Access Hacks 1 | . . . . . 1 . Unlock Access 1 | . . . . . 1 . Unauthorized Hacks . | . . . . . . . Terminals . | . . . . . . . Fabricators . | . . . . . . . Repair Stations . | . . . . . . . Recycling Units . | . . . . . . . Scanalyzers . | . . . . . . . Garrison Access . | . . . . . . . Data Cores Recovered 2 | . . . . 1 1 . Used 1 | . . . . . 1 . Hacking Detections 24 | . 6 3 3 3 8 1 Full Trace Events 7 | . 2 . 1 . 4 . Feedback Events . | . . . . . . . Feedback Blocked . | . . . . . . . Robot Schematics Acquired . | . . . . . . . Robots Built . | . . . . . . . Authchips . | . . . . . . . Time . | . . . . . . . Total Robot Build Rating . | . . . . . . . Part Schematics Acquired 1 | . . . . 1 . . Parts Built . | . . . . . . . Authchips . | . . . . . . . Time . | . . . . . . . Total Part Build Rating . | . . . . . . . Parts Repaired 2 | . . 1 . . 1 . Time 64 | . . 26 . . 38 . Parts Recycled . | . . . . . . . Recycled Matter . | . . . . . . . Retrieved Matter . | . . . . . . . Retrieved Components 9 | . . . 9 . . . Parts Scanalyzed . | . . . . . . . Part Schematics Acquired . | . . . . . . . Parts Damaged . | . . . . . . . Bothacking | -11 -10 -9 -8 -7 -6 -6 ------------ Run | Yrd Mat Mat Mat Fac Fac Gar Used RIF Installer . | . . . . . . . Robots Hacked . | . . . . . . . Non-combat . | . . . . . . . Combat . | . . . . . . . Robot Hacks Applied . | . . . . . . . Relay Couplers Released . | . . . . . . . Fabnet Peak Effective % . | . . . . . . . Robots Rewired . | . . . . . . . Allies Hacked . | . . . . . . . Hacks Repelled . | . . . . . . . Allies | -11 -10 -9 -8 -7 -6 -6 -------- Run | Yrd Mat Mat Mat Fac Fac Gar Total Allies . | . . . . . . . Largest Group . | . . . . . . . Highest-Rated Group . | . . . . . . . Highest-Rated Ally . | . . . . . . . Total Orders . | . . . . . . . Ally Attacks . | . . . . . . . Total Damage . | . . . . . . . Kills . | . . . . . . . Allies Corrupted . | . . . . . . . Allies Melted . | . . . . . . . Intel | -11 -10 -9 -8 -7 -6 -6 ------- Run | Yrd Mat Mat Mat Fac Fac Gar Active Infowar (turns) 3074 | 9 1003 368 651 488 515 40 Terrain 2 | . . 2 . . . . Seismic 2043 | 9 1003 366 651 14 . . Jamming 1029 | . . . . 474 515 40 Robot Analysis Total 1 | . . . . . 1 . Derelict Logs Recovered . | . . . . . . . Drone Launches . | . . . . . . . Drone Recoveries . | . . . . . . . Exploration | -11 -10 -9 -8 -7 -6 -6 ------------- Run | Yrd Mat Mat Mat Fac Fac Gar Turns Passed 3380 | 117 1003 368 764 488 557 83 Spaces Moved 4492 | 44 556 463 1020 773 1466 170 Core 3 | 3 . . . . . . Treads 597 | 41 556 . . . . . Legs . | . . . . . . . Wheels . | . . . . . . . Hover . | . . . . . . . Flight 3892 | . . 463 1020 773 1466 170 Fastest Speed 22 | 50 160 31 24 23 22 24 Average Speed 46 | 152 160 49 31 23 25 26 Slowest Speed 360 | 160 160 360 120 24 93 104 Overloaded Moves . | . . . . . . . Propulsion Burnouts . | . . . . . . . Robots Hopped 6 | . . . . 2 4 . Potential Cave-ins . | . . . . . . . Cave-ins Triggered . | . . . . . . . Exploration Rate (%) 41 | 3 89 42 76 17 37 23 Regions Visited 6 Branch Regions . Pre-discovered Areas . | . . . . . . . Known Exits Taken 1 | . . . . . 1 . Unknown Exits Taken 5 | 1 1 1 1 1 . . Scrap Searched . | . . . . . . . Spaces Dug 6 | . 6 . . . . . Terrain Destroyed 171 | . 67 100 4 . . . Melee . | . . . . . . . Projectile 2 | . . 2 . . . . AOE 169 | . 67 98 4 . . . Terrain Rammed . | . . . . . . . Walls Destroyed . | . . . . . . . Machines Disabled . | . . . . . . . Actions | -11 -10 -9 -8 -7 -6 -6 --------- Run | Yrd Mat Mat Mat Fac Fac Gar Total 5465 | 77 618 557 1358 1038 1618 199 Wait 558 | . 10 26 223 192 95 12 Move 4474 | 43 555 462 1019 768 1457 170 Hop 6 | . . . . 2 4 . Pick Up 74 | 10 10 8 17 13 15 1 Fast Attach 14 | . . 1 12 . 1 . Attach 38 | 7 . 7 3 4 12 5 Detach 5 | . . . 1 . 2 2 Swap 37 | . 2 12 7 8 7 1 Drop 56 | . 2 12 19 13 10 . Fire 85 | 17 38 29 1 . . . Melee 99 | . . . 56 20 15 8 Ram . | . . . . . . . Kick . | . . . . . . . Crush 1 | . 1 . . . . . Escape Stasis 18 | . . . . 18 . . Rewire . | . . . . . . . Trap . | . . . . . . . Miscellaneous . | . . . . . . . Route ------- -11/Scrapyard -10/Materials (discovered 5 exits: *Mat x3 / *Min x2) -9/Materials (discovered 2 exits: *Mat / [*Min]) -8/Materials (discovered 2 exits: *Fac x2) -7/Factory -6/Factory -6/Garrison History --------- Turn | Location | Event 15 | -11/Scrapyard | Discovered new exit (range 15) 118 | -11/Scrapyard | Entered Materials 300 | -10/Materials | Build established: Mutant 464 | -10/Materials | Discovered new exit (range 11) 573 | -10/Materials | Discovered new exit (range 16) 833 | -10/Materials | Discovered new exit (range 10) 957 | -10/Materials | Discovered new exit (range 14) 973 | -10/Materials | Identified exit to Mines 1121 | -10/Materials | Entered another Materials area 1121 | -9/Materials | Evolved 2 slots: Propulsion x2 1173 | -9/Materials | Repaired Lgt. Treads 1178 | -9/Materials | Discovered new exit (range 6) 1308 | -9/Materials | Discovered new exit (range 15) 1401 | -9/Materials | Lost 4 parts (2n2w) 1489 | -9/Materials | Entered another Materials area 1489 | -8/Materials | Evolved 2 slots: Propulsion x2 1795 | -8/Materials | Discovered new exit (range 7) 1875 | -8/Materials | Core integrity fell below 50% 1890 | -8/Materials | Build established: Sprinter 2096 | -8/Materials | Garrison activated, responded to threat 2118 | -8/Materials | Discovered new exit (range 4) 2253 | -8/Materials | Entered Factory 2253 | -7/Factory | Evolved 2 slots: Utility x2 2282 | -7/Factory | Identified exit to DSF 2729 | -7/Factory | Discovered new exit (range 9) 2741 | -7/Factory | Entered another Factory area 2741 | -6/Factory | Evolved 2 slots: Power x1, Utility x1 2964 | -6/Factory | Repaired Adv. Weight Redist. System 3296 | -6/Factory | Identified exit to Garrison 3298 | -6/Factory | Entered Garrison 3320 | -6/Garrison | Triggered checkpoint 3332 | -6/Garrison | Triggered checkpoint 3369 | -6/Garrison | Core integrity fell below 50% 3375 | -6/Garrison | Core integrity fell below 20% 3381 | -6/Garrison | Destroyed by H-66 Slayer with Gauss Rifle Last Messages --------------- 03363_ Imp. Deuterium Engine destroyed. 03363_ Imp. Surge Thruster destroyed. 03365_ Penetrated by Slug. 03366_ Acquired VTOL Module. 03367_ Adv. Weight Redist. System destroyed. 03368_ Penetrated by Slug. 03368_ Imp. Flight Unit destroyed. 03368_ Penetrated by Slug. 03368_ Katana destroyed. 03368_ Penetrated by Slug. 03368_ Hardlight Generator destroyed. 03371_ Penetrated by Slug. 03371_ Great Maul destroyed. 03371_ Penetrated by Slug. 03374_ Med. Storage Unit destroyed. 03374_ Penetrated by Slug. 03377_ Transmission Jammer destroyed. 03378_ Penetrated by Slug. 03379_ VTOL Module destroyed. 03381_ Penetrated by Slug. Map ----- +----------------------------------------------------+ | ?????# #????????????????????????????????????????? | | ?????# #????????????????????????????????????????? | | ?????# #????????????????????????????????????????? | | ?????# #????????????????????????????????????????? | | ?????# ###############??????????????????????????? | | ?????# # # #??????????????????????????? | | ?????# # % #??????????????????????????? | | ?????# ####### # #??????????????????????????? | | ???### #?????# ##??????????????????????????? | | ???# #?????# #####???????????????????????????? | | ???# #?????# #???????????????????????????????? | | ???# #?????# #???????????????????????????????? | | ???### ###???# #???????????????????????????????? | | ?????# #"#???# ##########??????????????????????? | | ?????# "#???# #??????????????????????? | | ?????# "#???# Y #??????????????????????? | | ?????# "#???########## #??????????????????????? | | ?????# #"#????????????# #??????????????????????? | | ?????######????????????# #??????????????????????? | | ???????????????????????# #??????????????????????? | | ???????????????????????# #??????????????????????? | | ???????????????????????# #??????????????????????? | | ???????????????????????# #??????????????????????? | | ???????????????????????# #??????????????????????? | | ???????????????????????#s|#??????????????????????? | | ???????????????????????#!@#??????????????????????? | | ???????????????????????# %#????????????????????#?? | | ???????????????????????#hh#??????######""""## ##? | | ???????????????????????#s ######## #? | | ???????????????????????#s #? | | ???????????????????????# #? | | ???????????????????????########### ## #?????? | | ?????????????????????????????????# #???????????? | | ???????????????????????????????# ??????????? | | ???????????????????????????????# ????????? | | ???????????????????????????????# ??????? | | ???????????????????????????????# ????? | | ???????????????????????????????### ## ## ??? | | ?????????????????????????????????# #? #??? #? | | ????????????????????????????????? ? ????? | | ????????????????????????????????? ?? ???? | | ????????????????????????????????## ?? ??? | | ?????????????????????????????????## ##??""## #?? | | ??????????????????????????????????# #??????? #?? | | ??????????????????????????????????# #???????????? | | ??????????????????????????????????? ????????????? | | ??????????????????????????????????? ????????????? | | ??????????????????????????????????? ????????????? | | ?????????????????????????????????????????????????? | | ?????????????????????????????????????????????????? | +----------------------------------------------------+ Best States ------------- Heat Dissipation 37 Energy Generation 28 Energy Capacity 525 Matter Stores 300 Matter Capacity 300 Sight Range 16 Terrain Scan Range 16 Terrain Scan Density 10 Jamming Range 12 Additional Mass Support 9 Propulsion Shielding 66 Melee Speed Boost 20 Evasion (%) 65 Recoil Reduction 2 Defensive Hacking 10 Item Schematics ----------------- Nuclear Pulse Array | -7/Factory | Hacked Robot Schematics ------------------ None Fabricated ------------ Nothing Repaired ---------- Lgt. Treads | 32% | -9/Materials Adv. Weight Redist. System | 16% | -6/Factory Alien Tech Used ----------------- None Achievements -------------- Can't Catch Me Dynamic Key Challenges ------------ None Game ------ Seed ForceActiveArachnoskeleton Manual? 0 Play Time 01:16:18 Cumulative 9.5 hours Start 2025.07.18 @ 22:59:56 End 2025.07.19 @ 00:19:25 Sessions 1 Manual Loads 0 Difficulty Rogue Special Mode None Game No. 27 Rogue 27 Adventurer 0 Explorer 0 Win Type - Total 0 Types 0/0/0/0/0/0/0/0/0/0 Lore% 13 Gallery% 14 Achievement% 12 Wizard Run 0 Options --------- Layout 1 ASCII 0 Keyboard 0 Movement Mouse Keybinds 0 Fullscreen 1 Font 24/Smallcaps Map View 50x40 Zoom Use 0% Tactical HUD 1 Map Filters NONE Filters NONE Steam 1 RUN: 187c545d-4425-43b2-9e69-bde5ec8ec8f7